bitfinex/quotes_BTCUSD_20241110
["timestamp","ask_amount","ask_price","bid_price","bid_amount"]
[1731274417895,0.00141562,79708.0,79699.0,0.11889501]
[1731274418005,0.00141562,79708.0,79700.0,0.01794837]
[1731274418627,0.00141562,79708.0,79700.0,0.20876015]
[1731274418842,0.00141562,79708.0,79702.0,0.005]
[1731274419044,0.00141562,79708.0,79704.0,0.005]
[1731274419278,0.00141562,79708.0,79705.0,0.00250885]
[1731274419449,0.00141562,79708.0,79705.0,0.01536409]
[1731274419670,0.00141562,79708.0,79704.0,0.005]
[1731274420180,0.00141562,79708.0,79705.0,0.250925]
[1731274420381,0.00141562,79708.0,79704.0,0.005]
[1731274420610,0.00141562,79708.0,79700.0,0.02223707]
[1731274420817,0.00141562,79708.0,79705.0,0.125461]
[1731274421054,0.00141562,79708.0,79699.0,0.12057301]
[1731274421288,0.00141562,79708.0,79700.0,0.0120573]
[1731274421488,0.12546,79707.0,79699.0,0.12057301]
[1731274421701,0.00141562,79708.0,79703.0,0.19081178]
[1731274421913,0.00141562,79708.0,79703.0,0.002509]
[1731274422136,0.00141562,79708.0,79699.0,0.12057301]
[1731274422384,0.00141562,79708.0,79699.0,0.28668371]
[1731274422589,0.00141562,79708.0,79701.0,0.125468]
[1731274422785,0.00141562,79708.0,79699.0,0.28668471]
[1731274423299,0.09,79700.0,79699.0,0.28668471]
[1731274424160,0.09,79700.0,79699.0,0.16121371]
[1731274424370,0.09,79700.0,79699.0,0.12057301]
[1731274425204,0.09,79700.0,79699.0,0.44185679]
[1731274425408,0.09,79700.0,79699.0,0.25888392]
[1731274426449,0.09,79700.0,79699.0,0.30858392]
[1731274426660,0.09,79700.0,79699.0,0.38485172]
[1731274427083,0.09,79700.0,79699.0,0.38285172]
[1731274427514,0.09,79700.0,79699.0,0.38485172]
[1731274427710,0.09,79700.0,79699.0,0.3848506]
[1731274427921,0.09,79700.0,79699.0,0.3973911]
[1731274428363,0.09,79700.0,79699.0,0.52333331]
[1731274429314,0.00141562,79708.0,79707.0,0.005]
[1731274429558,0.00141562,79708.0,79707.0,0.38384756]
[1731274429768,0.00141562,79708.0,79707.0,0.39701228]
[1731274429993,0.00141562,79708.0,79707.0,0.28078596]
[1731274430223,0.00141562,79708.0,79707.0,0.26762152]
[1731274430437,0.00141562,79708.0,79707.0,0.26511267]
[1731274430856,0.00141562,79708.0,79707.0,0.22203729]
[1731274431062,0.06285603,79713.0,79707.0,0.22203729]
[1731274431063,0.06285603,79713.0,79707.0,0.09657829]
[1731274431318,0.06285603,79713.0,79711.0,0.125453]
[1731274431527,0.06285603,79713.0,79712.0,0.02037829]
[1731274431776,0.06285603,79713.0,79712.0,0.00783779]
[1731274431983,0.18901733,79713.0,79712.0,0.00783779]
[1731274432745,0.31495954,79713.0,79712.0,0.00783779]
[1731274432946,0.31495954,79713.0,79705.0,0.01254152]
[1731274432947,0.125458,79708.0,79705.0,0.01254152]
[1731274433219,0.250906,79712.0,79706.0,0.00783891]
[1731274433416,0.0007113,79708.0,79707.0,0.00783891]
[1731274434639,0.12665351,79708.0,79702.0,0.04177182]
[1731274434843,0.0007113,79703.0,79702.0,0.04177182]
[1731274434969,0.0007113,79703.0,79701.0,0.19081178]
[1731274435323,0.0007113,79702.0,79701.0,0.19081178]
[1731274435526,0.0007113,79702.0,79700.0,0.04014101]
[1731274435915,0.0007113,79702.0,79701.0,0.00783865]
[1731274436322,0.0007113,79706.0,79701.0,0.00783865]
[1731274436600,0.0007113,79702.0,79699.0,0.001678]
[1731274436737,0.0007113,79702.0,79700.0,0.00783902]
[1731274436938,0.12594221,79708.0,79701.0,0.00783902]
[1731274437334,0.0007113,79706.0,79702.0,0.00783902]
[1731274437454,0.0007113,79703.0,79699.0,0.001678]
[1731274437658,0.0007113,79703.0,79700.0,0.00783915]
[1731274437866,0.0007113,79702.0,79701.0,0.00783915]
[1731274438072,0.0007113,79704.0,79701.0,0.00783915]
[1731274438257,0.0007113,79702.0,79701.0,0.00783915]
[1731274438453,0.0007113,79702.0,79701.0,0.00783901]
[1731274438654,0.0007113,79706.0,79701.0,0.00783901]
[1731274438899,0.12594221,79708.0,79699.0,0.001678]
[1731274438900,0.0007113,79702.0,79699.0,0.001678]
[1731274439727,0.12594221,79708.0,79699.0,0.001678]
[1731274439728,0.12594221,79701.0,79699.0,0.001678]
[1731274439929,0.0007113,79700.0,79699.0,0.001678]
[1731274440296,0.25212351,79700.0,79699.0,0.001678]
[1731274440572,0.39065678,79700.0,79699.0,0.001678]
[1731274441331,0.25212351,79700.0,79699.0,0.001678]
[1731274441533,0.12665351,79700.0,79699.0,0.001678]
[1731274441691,0.0007113,79700.0,79699.0,0.001678]
[1731274442540,0.0007113,79708.0,79699.0,0.0143934]
[1731274442764,0.0007113,79702.0,79699.0,0.0143934]
[1731274442935,0.0007113,79702.0,79699.0,0.001678]
[1731274443811,0.000839,79700.0,79699.0,0.001678]
[1731274445220,0.126309,79700.0,79699.0,0.001678]
[1731274445428,0.25296251,79700.0,79699.0,0.001678]
[1731274446057,0.30923594,79700.0,79699.0,0.001678]
[1731274446408,0.25296251,79700.0,79699.0,0.001678]
[1731274446611,0.56302769,79700.0,79699.0,0.001678]
[1731274446724,0.56302769,79700.0,79685.0,0.01254365]
[1731274446725,0.1262033,79686.0,79685.0,0.01254365]
[1731274446925,0.25214551,79686.0,79685.0,0.01254365]
[1731274447170,0.32717912,79686.0,79685.0,0.01254365]
[1731274447545,0.25214551,79686.0,79685.0,0.01254365]
[1731274447787,0.46560145,79686.0,79685.0,0.01254365]
[1731274447927,0.49636784,79686.0,79685.0,0.01254365]
[1731274448124,0.63436784,79686.0,79685.0,0.01254365]
[1731274448330,0.74686344,79686.0,79685.0,0.01254365]
[1731274448547,0.63436784,79686.0,79685.0,0.01254365]
[1731274449187,0.2412163,79678.0,79672.0,0.001678]
[1731274449392,0.76721175,79678.0,79672.0,0.001678]
[1731274449592,0.67359384,79678.0,79672.0,0.001678]
[1731274450827,0.46542366,79678.0,79672.0,0.001678]
[1731274451002,0.29457759,79678.0,79672.0,0.001678]
[1731274451180,0.29457759,79678.0,79670.0,0.09416778]
[1731274451181,0.1262273,79671.0,79670.0,0.09416778]
[1731274451381,0.25216951,79671.0,79670.0,0.09416778]
[1731274451614,0.12665351,79671.0,79662.0,0.19081178]
[1731274451821,0.0007113,79664.0,79663.0,0.02673118]
[1731274452026,0.12594221,79670.0,79659.0,0.202033]
[1731274452027,0.0007113,79663.0,79659.0,0.0765]
[1731274452291,0.0007113,79669.0,79662.0,0.19081178]
[1731274452473,0.0007113,79669.0,79661.0,0.27554617]
[1731274452676,0.0007113,79663.0,79659.0,0.11818264]
[1731274452850,0.0007113,79663.0,79647.0,0.251105]
[1731274453052,0.0007113,79663.0,79648.0,0.0754]
[1731274453280,0.0007113,79659.0,79648.0,0.26621178]
[1731274453594,0.251048,79666.0,79648.0,0.0754]
[1731274453595,0.0007113,79655.0,79648.0,0.0754]
[1731274453735,0.0007113,79652.0,79648.0,0.0754]
[1731274455138,0.12594221,79651.0,79640.0,0.0754]
[1731274455364,0.125549,79650.0,79640.0,0.0754]
[1731274455569,0.125556,79646.0,79640.0,0.0754]
[1731274455766,0.0007113,79647.0,79640.0,0.0754]
[1731274455971,0.125559,79644.0,79637.0,0.04239586]
[1731274456212,0.0007113,79645.0,79638.0,0.19081178]
[1731274456431,0.1262683,79645.0,79637.0,0.00188319]
[1731274456782,0.22362751,79647.0,79637.0,0.00188319]
[1731274457033,0.125558,79645.0,79637.0,0.00188319]
[1731274457268,0.125562,79642.0,79637.0,0.00188319]
[1731274457511,0.19081178,79651.0,79637.0,0.00188319]
[1731274457512,0.125557,79645.0,79637.0,0.00188319]
[1731274457732,0.125549,79650.0,79637.0,0.12745119]
[1731274457962,0.125556,79646.0,79637.0,0.00188319]
[1731274458178,0.376656,79648.0,79637.0,0.00188319]
[1731274458387,0.125556,79646.0,79637.0,0.00188319]
[1731274458601,0.125558,79645.0,79637.0,0.00188319]
[1731274458828,0.251108,79647.0,79637.0,0.00188319]
[1731274459035,0.125557,79645.0,79637.0,0.00188319]
[1731274459268,0.251111,79646.0,79637.0,0.00188319]
[1731274459486,0.125559,79644.0,79637.0,0.00188319]
[1731274459942,0.125555,79646.0,79637.0,0.00188319]
[1731274460414,0.251072,79659.0,79637.0,0.00188319]
[1731274460611,0.19081178,79650.0,79638.0,0.125568]
[1731274460836,0.125544,79653.0,79639.0,0.251133]
[1731274461038,0.12594221,79654.0,79637.0,0.00188319]
[1731274461248,0.37703021,79654.0,79636.0,0.18969497]
[1731274461487,0.125548,79651.0,79638.0,0.125566]
[1731274461723,0.002,79657.0,79637.0,0.19081178]
[1731274461724,0.251101,79649.0,79637.0,0.19081178]
[1731274461981,0.002,79640.0,79625.0,0.001678]
[1731274462187,0.251148,79635.0,79625.0,0.001678]
[1731274462391,0.125566,79639.0,79625.0,0.001678]
[1731274462600,0.125574,79635.0,79626.0,0.03977359]
[1731274462813,0.12794221,79640.0,79626.0,0.03977359]
[1731274463097,0.251133,79639.0,79626.0,0.03977359]
[1731274463293,0.127587,79626.0,79625.0,0.001678]
[1731274463511,0.25652921,79626.0,79625.0,0.001678]
[1731274463723,0.41152921,79626.0,79625.0,0.001678]
[1731274464073,0.42643433,79626.0,79625.0,0.001678]
[1731274465031,0.45403321,79626.0,79625.0,0.001678]
[1731274465309,0.43912809,79626.0,79625.0,0.001678]
[1731274465641,0.45402431,79626.0,79625.0,0.001678]
[1731274465963,0.43912809,79626.0,79625.0,0.001678]
[1731274466168,0.5650703,79626.0,79625.0,0.001678]
[1731274466520,0.5880703,79626.0,79625.0,0.001678]
[1731274466759,0.62812221,79626.0,79625.0,0.001678]
[1731274466957,0.86118388,79626.0,79625.0,0.001678]
[1731274467098,0.73524167,79626.0,79625.0,0.001678]
[1731274468389,0.71224167,79626.0,79625.0,0.001678]
[1731274469519,0.69735617,79626.0,79625.0,0.001678]
[1731274469890,0.69735617,79626.0,79597.0,0.00142]
[1731274469891,0.002,79609.0,79597.0,0.00142]
[1731274470092,0.24727321,79609.0,79597.0,0.00142]
[1731274470298,0.125618,79606.0,79597.0,0.00142]
[1731274470491,0.25156021,79606.0,79597.0,0.00142]
[1731274470891,0.25656021,79606.0,79597.0,0.00142]
[1731274472188,0.12594221,79606.0,79597.0,0.00142]
[1731274472355,0.12594221,79606.0,79597.0,0.127052]
[1731274472578,0.12594221,79606.0,79601.0,0.125626]
[1731274472782,0.12594221,79606.0,79605.0,0.01289683]
[1731274472979,0.12594221,79606.0,79605.0,0.00019223]
[1731274478721,0.12678221,79606.0,79605.0,0.00019223]
[1731274482184,0.00084,79606.0,79605.0,0.00019223]
[1731274484310,0.00084,79606.0,79605.0,0.12781223]
[1731274484535,0.00084,79606.0,79605.0,0.20251223]
[1731274488797,0.00084,79606.0,79605.0,0.00019223]
[1731274488994,0.126458,79606.0,79605.0,0.00019223]
[1731274489520,0.00084,79606.0,79605.0,0.00019223]
[1731274489959,0.25240021,79606.0,79605.0,0.00019223]
[1731274490574,0.24740021,79606.0,79605.0,0.00019223]
[1731274493455,0.12594221,79606.0,79605.0,0.00019223]
[1731274498219,0.12594221,79606.0,79598.0,0.12499594]
[1731274498456,0.12594221,79605.0,79597.0,0.00101825]
[1731274498659,0.1,79614.0,79604.0,0.12562]
[1731274498869,0.19081178,79610.0,79604.0,0.125621]
[1731274499126,0.03734302,79616.0,79601.0,0.0797]
[1731274499338,0.03734302,79616.0,79615.0,0.125604]
[1731274500033,0.03734302,79616.0,79614.0,0.125606]
[1731274500694,0.03734302,79616.0,79614.0,0.125604]
[1731274501138,0.03734302,79616.0,79613.0,0.125607]
[1731274501340,0.03734302,79616.0,79613.0,0.251215]
[1731274501802,0.03734302,79616.0,79610.0,0.29206093]
[1731274502220,0.03818302,79616.0,79612.0,0.125607]
[1731274502842,0.03818302,79616.0,79613.0,0.125606]
[1731274503079,0.03818302,79616.0,79615.0,0.125604]
[1731274503299,0.00084,79616.0,79615.0,0.205304]
[1731274503510,0.00084,79616.0,79615.0,0.38804621]
[1731274504400,0.19081178,79632.0,79631.0,0.125579]
[1731274504641,0.19081178,79640.0,79631.0,0.125579]
[1731274504642,0.19081178,79640.0,79639.0,0.125566]
[1731274504850,0.19081178,79640.0,79639.0,0.205266]
[1731274505071,0.005,79662.0,79639.0,0.0797]
[1731274505072,0.19081178,79656.0,79639.0,0.0797]
[1731274505368,0.19081178,79656.0,79647.0,0.251106]
[1731274505570,0.19081178,79656.0,79645.0,0.125555]
[1731274505782,0.19081178,79656.0,79639.0,0.0797]
[1731274505915,0.02524368,79662.0,79650.0,0.125549]
[1731274506115,0.19081178,79665.0,79650.0,0.12523303]
[1731274507249,0.19081178,79665.0,79641.0,0.251123]
[1731274507250,0.09857526,79662.0,79643.0,0.04143724]
[1731274507453,0.12554,79656.0,79642.0,0.251123]
[1731274507863,0.251069,79660.0,79639.0,0.0797]
[1731274507864,0.14544244,79647.0,79639.0,0.0797]
[1731274508088,0.125557,79645.0,79633.0,0.125574]
[1731274508233,0.12594221,79644.0,79637.0,0.19081178]
[1731274508434,0.12594221,79644.0,79637.0,0.125568]
[1731274508735,0.12594221,79644.0,79631.0,0.251156]
[1731274508736,0.03744492,79645.0,79644.0,0.125558]
[1731274508934,0.03744492,79645.0,79644.0,0.205058]
[1731274509182,0.01233392,79646.0,79645.0,0.220057]
[1731274509386,0.05616739,79656.0,79655.0,0.205041]
[1731274509598,0.05616739,79656.0,79655.0,0.207041]
[1731274509994,0.05616739,79656.0,79655.0,0.205041]
[1731274510237,0.05616739,79656.0,79655.0,0.207041]
[1731274510974,0.05616739,79656.0,79655.0,0.205041]
[1731274511809,0.05616739,79656.0,79655.0,0.207041]
[1731274512768,0.05616739,79656.0,79655.0,0.205041]
[1731274513992,0.05616739,79656.0,79655.0,0.125541]
[1731274514277,0.000839,79656.0,79649.0,0.251101]
[1731274514494,0.000839,79656.0,79647.0,0.251108]
[1731274514614,0.000839,79656.0,79649.0,0.125549]
[1731274514823,0.12594221,79655.0,79638.0,0.0795]
[1731274515117,0.12594221,79655.0,79648.0,0.125552]
[1731274515327,0.12594221,79655.0,79646.0,0.25111]
[1731274515526,0.12594221,79655.0,79650.0,0.125548]
[1731274515802,0.12594221,79655.0,79648.0,0.125551]
[1731274515992,0.12594221,79655.0,79649.0,0.2511]
[1731274516217,0.12594221,79655.0,79653.0,0.125543]
[1731274516423,0.000839,79656.0,79644.0,0.251117]
[1731274516628,0.12678121,79656.0,79655.0,0.125541]
[1731274516945,0.000839,79656.0,79655.0,0.125541]
[1731274518009,0.000839,79656.0,79655.0,0.205041]
[1731274518374,0.000839,79656.0,79655.0,0.20755163]
[1731274519058,0.000839,79656.0,79655.0,0.205041]
[1731274521369,0.000839,79656.0,79655.0,0.125541]
[1731274521572,0.000839,79656.0,79651.0,0.251093]
[1731274521769,0.000839,79656.0,79655.0,0.125541]
[1731274522119,0.000839,79656.0,79647.0,0.0795]
[1731274522318,0.000839,79656.0,79645.0,0.251114]
[1731274522517,0.000839,79656.0,79644.0,0.19081178]
[1731274522861,0.000839,79656.0,79654.0,0.125542]
[1731274523426,0.125541,79655.0,79648.0,0.125551]
[1731274523660,0.000839,79656.0,79649.0,0.12555]
[1731274523832,0.000839,79656.0,79634.0,0.125573]
[1731274523833,0.251095,79651.0,79634.0,0.125573]
[1731274524010,0.125571,79636.0,79635.0,0.19081178]
[1731274524219,0.4436441,79650.0,79635.0,0.19081178]
[1731274524220,0.13094221,79650.0,79635.0,0.20989296]
[1731274524392,0.023,79649.0,79635.0,0.01908118]
[1731274524590,0.12594221,79648.0,79635.0,0.01908118]
[1731274524792,0.125576,79633.0,79627.0,0.19081178]
[1731274525008,0.125576,79633.0,79623.0,0.330681]
[1731274525009,0.12559,79624.0,79619.0,0.005]
[1731274525240,0.12559,79624.0,79618.0,0.19081178]
[1731274525241,0.125598,79619.0,79618.0,0.19081178]
[1731274525456,0.125601,79617.0,79609.0,0.125612]
[1731274525664,0.12594221,79619.0,79615.0,0.125604]
[1731274525826,0.12594221,79619.0,79608.0,0.19081178]
[1731274526026,0.25154021,79619.0,79611.0,0.12561]
[1731274526244,0.12594221,79619.0,79610.0,0.251224]
[1731274526468,0.12594221,79619.0,79611.0,0.12561]
[1731274526678,0.12594221,79619.0,79608.0,0.19581178]
[1731274526882,0.12594221,79619.0,79615.0,0.125603]
[1731274527081,0.12594221,79619.0,79610.0,0.251224]
[1731274527298,0.12594221,79619.0,79615.0,0.125603]
[1731274527503,0.19581178,79632.0,79623.0,0.125591]
[1731274527736,0.19081178,79624.0,79619.0,0.125596]
[1731274527949,0.12594221,79623.0,79612.0,0.005]
[1731274528113,0.12594221,79623.0,79615.0,0.251208]
[1731274528335,0.12594221,79623.0,79622.0,0.125593]
[1731274528681,0.12594221,79623.0,79613.0,0.251215]
[1731274528886,0.12594221,79623.0,79615.0,0.251208]
[1731274529033,0.12594221,79623.0,79616.0,0.251205]
[1731274529394,0.12594221,79623.0,79620.0,0.125595]
[1731274529536,0.12594221,79623.0,79616.0,0.251205]
[1731274529709,0.12594221,79623.0,79619.0,0.125597]
[1731274529911,0.12594221,79623.0,79617.0,0.1256]
[1731274530315,0.12594221,79623.0,79618.0,0.125598]
[1731274530645,0.12594221,79623.0,79619.0,0.125597]
[1731274530827,0.12594221,79623.0,79617.0,0.251202]
[1731274531031,0.20081178,79632.0,79612.0,0.005]
[1731274531032,0.19581178,79632.0,79619.0,0.251196]
[1731274531229,0.12594221,79631.0,79624.0,0.125589]
[1731274531467,0.125583,79629.0,79621.0,0.125593]
[1731274531631,0.12594221,79628.0,79623.0,0.12559]
[1731274531951,0.12594221,79628.0,79618.0,0.251199]
[1731274532320,0.12594221,79628.0,79621.0,0.125594]
[1731274532522,0.005,79622.0,79608.0,0.125615]
[1731274532733,0.005,79622.0,79610.0,0.19081178]
[1731274532734,0.12561,79611.0,79610.0,0.19081178]
[1731274532940,0.125618,79606.0,79605.0,0.00168]
[1731274533404,0.25156021,79606.0,79605.0,0.00168]
[1731274533826,0.12594221,79606.0,79605.0,0.00168]
[1731274535291,0.12881229,79606.0,79605.0,0.00168]
[1731274536120,0.25443029,79606.0,79605.0,0.00168]
[1731274536293,0.12881229,79606.0,79605.0,0.00168]
[1731274536709,0.25443029,79606.0,79605.0,0.00168]
[1731274536921,0.12881229,79606.0,79605.0,0.00168]
[1731274537339,0.25443029,79606.0,79605.0,0.00168]
[1731274537778,0.12881229,79606.0,79605.0,0.00168]
[1731274539376,0.25550437,79606.0,79605.0,0.00168]
[1731274539786,0.27850437,79606.0,79605.0,0.00168]
[1731274539991,0.125626,79601.0,79600.0,0.001678]
[1731274540204,0.25156821,79601.0,79600.0,0.001678]
[1731274540444,0.25550339,79601.0,79600.0,0.001678]
[1731274542017,0.12987739,79601.0,79600.0,0.001678]
[1731274542232,0.25550339,79601.0,79600.0,0.001678]
[1731274542686,0.12987739,79601.0,79600.0,0.001678]
[1731274542945,0.25550339,79601.0,79600.0,0.001678]
[1731274544225,0.73214749,79601.0,79600.0,0.001678]
[1731274544942,0.38850339,79601.0,79600.0,0.001678]
[1731274546150,0.60620528,79601.0,79600.0,0.001678]
[1731274546350,0.64771542,79601.0,79600.0,0.001678]
[1731274546663,0.43001353,79601.0,79600.0,0.001678]
[1731274547256,0.64771542,79601.0,79600.0,0.001678]
[1731274547702,0.83105763,79601.0,79600.0,0.001678]
[1731274548344,0.87845763,79601.0,79600.0,0.001678]
[1731274548782,0.135631,79598.0,79597.0,0.00061784]
[1731274548994,2.09707321,79598.0,79597.0,0.00061784]
[1731274549248,2.09991804,79598.0,79597.0,0.00061784]
[1731274554525,2.10097938,79598.0,79597.0,0.00061784]
[1731274554957,0.5,79584.0,79576.0,0.19081178]
[1731274555177,0.12594221,79583.0,79576.0,0.19081178]
[1731274555392,0.12703506,79583.0,79576.0,0.19081178]
[1731274555629,0.12703506,79583.0,79573.0,0.279696]
[1731274555872,0.00279432,79582.0,79581.0,0.125658]
[1731274556078,0.12873653,79582.0,79581.0,0.203558]
[1731274556222,0.12594221,79582.0,79581.0,0.203558]
[1731274557628,0.105,79591.0,79581.0,0.0779]
[1731274557874,0.19081178,79589.0,79588.0,0.125647]
[1731274558140,0.19081178,79589.0,79581.0,0.0779]
[1731274558141,0.12594221,79590.0,79589.0,0.125645]
[1731274558394,0.12594221,79590.0,79581.0,0.0829]
[1731274558395,0.005,79609.0,79586.0,0.005]
[1731274558605,0.19081178,79597.0,79596.0,0.203534]
[1731274558816,0.005,79609.0,79596.0,0.0779]
[1731274559023,0.02521096,79601.0,79586.0,0.005]
[1731274559240,0.12594221,79600.0,79587.0,0.251297]
[1731274559444,0.12879336,79600.0,79595.0,0.125635]
[1731274559673,0.125652,79585.0,79572.0,0.0829]
[1731274559916,0.005,79591.0,79572.0,0.0829]
[1731274559917,0.12874284,79584.0,79582.0,0.125655]
[1731274560117,0.12594221,79583.0,79582.0,0.125655]
[1731274560346,0.12873968,79583.0,79578.0,0.251325]
[1731274560591,0.12873968,79583.0,79574.0,0.251338]
[1731274560592,0.12873968,79583.0,79582.0,0.125656]
[1731274560794,0.00279747,79583.0,79582.0,0.125656]
[1731274561006,1.74046293,79599.0,79592.0,0.12564]
[1731274561007,0.19081178,79593.0,79592.0,0.12564]
[1731274561221,0.31675399,79593.0,79592.0,0.12564]
[1731274561428,0.12685956,79593.0,79592.0,0.12564]
[1731274562089,0.1,79592.0,79582.0,0.125656]
[1731274562303,0.12703709,79591.0,79576.0,0.44214178]
[1731274562526,0.105,79586.0,79577.0,0.19081178]
[1731274562778,0.125654,79583.0,79573.0,0.231925]
[1731274563007,0.251316,79581.0,79573.0,0.106256]
[1731274563265,0.12594221,79580.0,79579.0,0.125661]
[1731274563465,0.12594221,79580.0,79577.0,0.125663]
[1731274563674,0.12594221,79580.0,79575.0,0.251335]
[1731274563904,0.12594221,79580.0,79579.0,0.125661]
[1731274564125,0.09598221,79580.0,79579.0,0.125661]
[1731274566856,0.09963265,79580.0,79579.0,0.125661]
[1731274567060,0.09598221,79580.0,79579.0,0.125661]
[1731274567260,0.09963265,79580.0,79579.0,0.125661]
[1731274567470,0.09598221,79580.0,79579.0,0.125661]
[1731274568798,0.5,79600.0,79580.0,0.005]
[1731274569000,0.2656353,79603.0,79589.0,0.0825]
[1731274569001,0.02554942,79601.0,79589.0,0.0825]
[1731274569223,0.22822354,79603.0,79599.0,0.125629]
[1731274569224,0.05611764,79600.0,79599.0,0.125629]
[1731274570166,0.05611764,79600.0,79587.0,0.251296]
[1731274570167,0.19081178,79603.0,79581.0,0.005]
[1731274570293,0.19081178,79603.0,79573.0,0.49739589]
[1731274570294,0.12847915,79600.0,79590.0,0.251287]
[1731274570531,0.12594221,79599.0,79588.0,0.251292]
[1731274570767,0.12594221,79599.0,79584.0,0.256303]
[1731274570768,0.1,79592.0,79584.0,0.125652]
[1731274571079,0.25440694,79591.0,79583.0,0.125653]
[1731274571283,0.25440694,79591.0,79585.0,0.125651]
[1731274572476,0.12876494,79591.0,79581.0,0.005]
[1731274572686,0.12876494,79591.0,79590.0,0.125643]
[1731274573313,0.12876494,79591.0,79580.0,0.251316]
[1731274573545,0.12876494,79591.0,79585.0,0.125651]
[1731274573747,0.12876494,79591.0,79579.0,0.0825]
[1731274573748,0.125656,79583.0,79579.0,0.0825]
[1731274573966,0.12594221,79582.0,79579.0,0.208161]
[1731274574197,0.12594221,79582.0,79579.0,0.0825]
[1731274574352,0.12594221,79582.0,79581.0,0.125658]
[1731274575204,0.12594221,79582.0,79581.0,0.1335091]
[1731274575367,0.19081178,79593.0,79579.0,0.0825]
[1731274575569,0.12594221,79592.0,79590.0,0.125643]
[1731274575844,0.12594221,79592.0,79588.0,0.125645]
[1731274576076,0.12594221,79592.0,79589.0,0.125644]
[1731274576735,0.16335397,79592.0,79589.0,0.125644]
[1731274576936,0.16335397,79592.0,79587.0,0.125648]
[1731274577343,0.00282273,79591.0,79589.0,0.125644]
[1731274577577,0.12594221,79590.0,79589.0,0.125644]
[1731274577819,0.00281958,79590.0,79589.0,0.206444]
[1731274578024,0.00281958,79590.0,79589.0,0.21929436]
[1731274578292,0.07482352,79598.0,79597.0,0.211432]
[1731274578490,0.00084,79600.0,79597.0,0.1348]
[1731274578699,0.00084,79600.0,79599.0,0.125629]
[1731274578926,0.00084,79600.0,79599.0,0.130629]
[1731274579174,0.07482352,79623.0,79622.0,0.130593]
[1731274579377,0.28434118,79627.0,79626.0,0.130587]
[1731274579504,0.05611764,79628.0,79627.0,0.125585]
[1731274579726,0.05611764,79628.0,79627.0,0.13343147]
[1731274580527,0.05611764,79629.0,79628.0,0.125583]
[1731274580782,0.05611764,79629.0,79628.0,0.13342947]
[1731274581219,0.11223528,79638.0,79637.0,0.125569]
[1731274581679,0.1213614,79638.0,79637.0,0.130569]
[1731274582390,0.11223528,79638.0,79637.0,0.130569]
[1731274583766,0.11223528,79638.0,79633.0,0.251149]
[1731274583767,0.19081178,79648.0,79639.0,0.125565]
[1731274583971,0.19081178,79640.0,79629.0,0.005]
[1731274584174,0.12594221,79647.0,79630.0,0.19081178]
[1731274584175,0.125575,79634.0,79630.0,0.19081178]
[1731274584449,0.25151821,79633.0,79627.0,0.125584]
[1731274584654,0.12558,79631.0,79625.0,0.19081178]
[1731274584901,0.125582,79629.0,79619.0,0.005]
[1731274585107,0.12594221,79628.0,79622.0,0.0815]
[1731274585524,0.19081178,79627.0,79622.0,0.0815]
[1731274585701,0.12594221,79626.0,79616.0,0.125602]
[1731274585946,0.12594221,79626.0,79612.0,0.0815]
[1731274586201,0.12594221,79626.0,79617.0,0.005]
[1731274586202,0.25152921,79626.0,79617.0,0.005]
[1731274586417,0.25152921,79626.0,79624.0,0.12559]
[1731274586418,0.12594221,79626.0,79624.0,0.12559]
[1731274586846,0.12594221,79626.0,79617.0,0.005]
[1731274586847,0.12594221,79626.0,79620.0,0.125595]
[1731274587093,0.125589,79625.0,79612.0,0.332717]
[1731274587257,0.12594221,79625.0,79617.0,0.005]
[1731274587783,0.12594221,79625.0,79622.0,0.125592]
[1731274587920,0.12594221,79625.0,79623.0,0.12559]
[1731274588298,0.12594221,79625.0,79621.0,0.25119]
[1731274588299,0.12594221,79625.0,79624.0,0.12559]
[1731274588705,0.12839661,79625.0,79624.0,0.12559]
[1731274589110,0.25398461,79625.0,79614.0,0.125606]
[1731274589309,0.12839661,79625.0,79613.0,0.256215]
[1731274589550,0.37712321,79624.0,79616.0,0.125601]
[1731274589831,0.125601,79617.0,79612.0,0.207108]
[1731274590193,0.12836822,79616.0,79612.0,0.0815]
[1731274590394,0.125612,79610.0,79606.0,0.005]
[1731274590579,0.125609,79613.0,79606.0,0.005]
[1731274590781,0.12801792,79609.0,79602.0,0.206824]
[1731274591041,0.12594221,79609.0,79608.0,0.125615]
[1731274591951,0.00084,79629.0,79615.0,0.005]
[1731274592156,0.19081178,79620.0,79619.0,0.125598]
[1731274592320,0.02526341,79624.0,79623.0,0.125591]
[1731274593295,0.02526341,79624.0,79621.0,0.251187]
[1731274593504,0.125594,79622.0,79616.0,0.125602]
[1731274593884,0.12594221,79621.0,79616.0,0.125602]
[1731274594033,0.12594221,79621.0,79614.0,0.125605]
[1731274594242,0.25153721,79621.0,79614.0,0.125605]
[1731274594560,0.25153721,79621.0,79610.0,0.251222]
[1731274594561,0.1256,79618.0,79610.0,0.251222]
[1731274594778,0.12594221,79617.0,79604.0,0.256243]
[1731274594960,0.12594221,79617.0,79603.0,0.19081178]
[1731274594961,0.12594221,79617.0,79607.0,0.005]
[1731274595306,0.25154321,79617.0,79610.0,0.125611]
[1731274595508,0.12594221,79617.0,79608.0,0.376846]
[1731274595770,0.12594221,79617.0,79613.0,0.125607]
[1731274595971,0.03026341,79624.0,79610.0,0.19081178]
[1731274595972,0.02526341,79624.0,79610.0,0.19081178]
[1731274596181,0.12594221,79623.0,79620.0,0.125595]
[1731274596351,0.12594221,79623.0,79615.0,0.005]
[1731274596559,0.12594221,79623.0,79612.0,0.005]
[1731274596560,0.125594,79622.0,79612.0,0.005]
[1731274596866,0.12594221,79623.0,79615.0,0.005]
[1731274597078,0.12594221,79623.0,79620.0,0.125595]
[1731274598902,0.12594221,79623.0,79622.0,0.125593]
[1731274599328,0.12594221,79623.0,79619.0,0.125597]
[1731274599539,0.13266201,79623.0,79617.0,0.251202]
[1731274599749,0.13266201,79623.0,79619.0,0.125598]
[1731274599991,0.13266201,79623.0,79615.0,0.006678]
[1731274600194,0.13266201,79623.0,79622.0,0.125593]
[1731274600513,0.13266201,79623.0,79619.0,0.125597]
[1731274600930,0.13266201,79623.0,79619.0,0.125596]
[1731274601550,0.13266201,79623.0,79615.0,0.001678]
[1731274601551,0.125602,79616.0,79615.0,0.001678]